fUSD/lending_fUSD_20240902
["ID","MTS","AMOUNT","RATE_DAILY","PERIOD"]
[336895813,1725237043080,-500.0,0.00022469,2]
[336895814,1725237043090,-500.0,0.00022469,2]
[336895815,1725237043099,-1133.78,0.00022469,2]
[336895816,1725237043109,-500.0,0.00022469,2]
[336895817,1725237043119,-833.81,0.00022469,2]
[336895818,1725237043129,-500.0,0.00022469,2]
[336895819,1725237043138,-2109.51,0.00022469,2]
[336895820,1725237043148,-2061.89,0.00022469,2]
[336895821,1725237043161,-500.0,0.00022469,2]
[336895822,1725237043171,-500.0,0.00022469,2]
[336895823,1725237043181,-1147.44,0.00022469,2]
[336895824,1725237043191,-500.0,0.00022469,2]
[336895825,1725237043202,-500.0,0.00022469,2]
[336895826,1725237043212,-500.0,0.00022469,2]
[336895827,1725237043221,-500.0,0.00022469,2]
[336895828,1725237043234,-826.35,0.00022469,2]
[336895829,1725237043244,-802.29,0.00022469,2]
[336895830,1725237043255,-500.0,0.00022469,2]
[336895831,1725237043264,-589.63,0.00022469,2]
[336895832,1725237043274,-500.0,0.00022469,2]
[336895833,1725237043284,-500.0,0.00022469,2]
[336895834,1725237043293,-500.0,0.00022469,2]
[336895835,1725237043303,-500.0,0.00022469,2]
[336895837,1725237043313,-1176.95,0.00022469,2]
[336895838,1725237043323,-500.0,0.00022469,2]
[336895839,1725237043333,-827.19,0.00022469,2]
[336895841,1725237043342,-516.53475459,0.00022469,2]
[336895843,1725237043352,-1465.17,0.00022469,2]
[336895844,1725237043361,-556.1,0.00022469,2]
[336895845,1725237043370,-500.0,0.00022469,2]
[336895847,1725237043379,-564.27,0.00022469,2]
[336895849,1725237043389,-500.0,0.00022469,2]
[336895851,1725237043397,-1421.12,0.00022469,2]
[336895852,1725237043407,-500.0,0.00022469,2]
[336895854,1725237043417,-629.75144811,0.00022469,2]
[336895855,1725237043426,-362.8,0.00022469,2]
[336895856,1725237043435,-500.0,0.00022469,2]
[336895857,1725237043445,-500.0,0.00022469,2]
[336895858,1725237043454,-1400.6,0.00022469,2]
[336895859,1725237043464,-500.0,0.00022469,2]
[336895860,1725237043473,-2196.12,0.00022469,2]
[336895861,1725237043482,-1281.09,0.00022469,2]
[336895862,1725237043492,-500.0,0.00022469,2]
[336895863,1725237043501,-501.0,0.00022469,2]
[336895864,1725237043511,-530.53,0.00022469,2]
[336895865,1725237043521,-500.0,0.00022469,2]
[336895867,1725237043530,-500.0,0.00022469,2]
[336895869,1725237043539,-267.97649664,0.00022469,2]
[336895871,1725237043549,-729.7,0.00022469,2]
[336895873,1725237043558,-1970.35,0.00022469,2]
[336895875,1725237043569,-500.0,0.00022469,2]
[336895877,1725237043582,-500.0,0.00022469,2]
[336895879,1725237043591,-500.0,0.00022469,2]
[336895881,1725237043602,-647.81,0.00022469,2]
[336895883,1725237043611,-517.28446116,0.00022469,2]
[336895885,1725237043620,-597.83401798,0.00022469,2]
[336895887,1725237043629,-788.54,0.00022469,2]
[336895889,1725237043639,-1719.37,0.00022469,2]
[336895891,1725237043648,-500.0,0.00022469,2]
[336895893,1725237043657,-500.0,0.00022469,2]
[336895895,1725237043666,-1356.17,0.00022469,2]
[336895897,1725237043676,-500.0,0.00022469,2]
[336895899,1725237043685,-500.0,0.00022469,2]
[336895901,1725237043694,-500.0,0.00022469,2]
[336895903,1725237043703,-1854.13,0.00022469,2]
[336895905,1725237043712,-500.0,0.00022469,2]
[336895907,1725237043722,-500.0,0.00022469,2]
[336895909,1725237043731,-500.0,0.00022469,2]
[336895911,1725237043740,-500.0,0.00022469,2]
[336895913,1725237043749,-1000.0,0.00022469,2]
[336895914,1725237043758,-500.0,0.00022469,2]
[336895915,1725237043768,-500.0,0.00022469,2]
[336895916,1725237043778,-714.76,0.00022469,2]
[336895917,1725237043787,-500.0,0.00022469,2]
[336895918,1725237043796,-500.0,0.00022469,2]
[336895919,1725237043805,-510.24,0.00022469,2]
[336895920,1725237043814,-686.57,0.00022469,2]
[336895921,1725237043823,-500.0,0.00022469,2]
[336895922,1725237043833,-500.0,0.00022469,2]
[336895923,1725237043842,-500.0,0.00022469,2]
[336895924,1725237043851,-500.0,0.00022469,2]
[336895925,1725237043860,-556.62,0.00022469,2]
[336895926,1725237043870,-1662.03,0.00022469,2]
[336895927,1725237043879,-921.39,0.00022469,2]
[336895928,1725237043888,-500.0,0.00022469,2]
[336895929,1725237043897,-500.0,0.00022469,2]
[336895931,1725237043907,-1026.07,0.00022469,2]
[336895933,1725237043916,-500.0,0.00022469,2]
[336895934,1725237043925,-500.0,0.00022469,2]
[336895936,1725237043934,-536.43,0.00022469,2]
[336895938,1725237043943,-700.77,0.00022469,2]
[336895940,1725237043953,-1520.7,0.00022469,2]
[336895942,1725237043963,-500.0,0.00022469,2]
[336895944,1725237043973,-500.0,0.00022469,2]
[336895946,1725237043983,-1088.88,0.00022469,2]
[336895948,1725237043992,-500.0,0.00022469,2]
[336895950,1725237044001,-763.35,0.00022469,2]
[336895952,1725237044011,-500.0,0.00022469,2]
[336895954,1725237044021,-500.0,0.00022469,2]
[336895956,1725237044030,-500.0,0.00022469,2]
[336895958,1725237044040,-500.0,0.00022469,2]
[336895959,1725237044049,-500.0,0.00022469,2]
[336895962,1725237044059,-1266.42,0.00022469,2]
[336895964,1725237044069,-500.0,0.00022469,2]
[336895966,1725237044079,-500.0,0.00022469,2]
[336895967,1725237044088,-590.18,0.00022469,2]
[336895969,1725237044097,-500.0,0.00022469,2]
[336895971,1725237044107,-500.0,0.00022469,2]
[336895973,1725237044116,-4541.08,0.00022469,2]
[336895975,1725237044125,-500.0,0.00022469,2]
[336895977,1725237044134,-500.0,0.00022469,2]
[336895979,1725237044144,-2714.84,0.00022469,2]
[336895981,1725237044155,-500.0,0.00022469,2]
[336895983,1725237044166,-500.0,0.00022469,2]
[336895985,1725237044175,-500.0,0.00022469,2]
[336895987,1725237044185,-500.0,0.00022469,2]
[336895989,1725237044194,-500.0,0.00022469,2]
[336895991,1725237044203,-500.0,0.00022469,3]
[336895993,1725237044212,-500.0,0.00022469,2]
[336895995,1725237044221,-500.0,0.00022469,2]
[336895997,1725237044231,-500.0,0.00022469,2]
[336895999,1725237044240,-500.0,0.00022469,2]
[336896001,1725237044249,-500.0,0.00022469,2]
[336896003,1725237044258,-561.85314856,0.00022469,2]
[336896004,1725237044268,-1084.2,0.00022469,2]
[336896006,1725237044277,-733.06,0.00022469,2]
[336896008,1725237044286,-500.0,0.00022469,2]
[336896010,1725237044299,-500.0,0.00022469,2]
[336896012,1725237044308,-2013.06,0.00022469,2]
[336896014,1725237044318,-500.0,0.00022469,2]
[336896016,1725237044327,-20000.0,0.00022469,2]
[336896018,1725237044337,-500.0,0.00022469,2]
[336896020,1725237044346,-500.0,0.00022469,2]
[336896022,1725237044355,-500.0,0.00022469,2]
[336896024,1725237044364,-1071.88,0.00022469,2]
[336896026,1725237044373,-500.0,0.00022469,2]
[336896028,1725237044383,-1284.07,0.00022469,2]
[336896030,1725237044392,-681.47,0.00022469,2]
[336896032,1725237044402,-1295.63,0.00022469,2]
[336896034,1725237044411,-1641.36,0.00022469,2]
[336896036,1725237044419,-1780.09,0.00022469,2]
[336896038,1725237044428,-500.0,0.00022469,2]
[336896040,1725237044437,-500.0,0.00022469,2]
[336896042,1725237044446,-1133.33,0.00022469,2]
[336896043,1725237044455,-1635.1,0.00022469,2]
[336896045,1725237044464,-500.0,0.00022469,2]
[336896047,1725237044475,-500.0,0.00022469,2]
[336896050,1725237044487,-500.0,0.00022469,2]
[336896052,1725237044499,-1834.05,0.00022469,2]
[336896054,1725237044509,-500.0,0.00022469,2]
[336896056,1725237044520,-500.0,0.00022469,2]
[336896058,1725237044530,-1739.22,0.00022469,2]
[336896060,1725237044540,-500.0,0.00022469,2]
[336896062,1725237044549,-1147.2,0.00022469,2]
[336896064,1725237044560,-500.0,0.00022469,2]
[336896066,1725237044569,-500.0,0.00022469,2]
[336896068,1725237044578,-744.79,0.00022469,2]
[336896070,1725237044589,-500.0,0.00022469,2]
[336896072,1725237044598,-796.93,0.00022469,2]
[336896074,1725237044608,-500.0,0.00022469,2]
[336896076,1725237044617,-500.0,0.00022469,2]
[336896078,1725237044626,-500.0,0.00022469,2]
[336896080,1725237044635,-500.0,0.00022469,2]
[336896082,1725237044644,-500.0,0.00022469,2]
[336896084,1725237044653,-500.0,0.00022469,2]
[336896086,1725237044663,-500.0,0.00022469,2]
[336896088,1725237044673,-1353.41,0.00022469,2]
[336896090,1725237044683,-500.0,0.00022469,2]
[336896092,1725237044693,-531.57,0.00022469,2]
[336896094,1725237044704,-575.14448955,0.00022469,2]
[336896096,1725237044714,-500.0,0.00022469,2]
[336896098,1725237044724,-500.0,0.00022469,2]
[336896100,1725237044735,-500.0,0.00022469,2]
[336896102,1725237044746,-1509.86,0.00022469,2]
[336896105,1725237044757,-1060.54,0.00022469,2]
[336896107,1725237044768,-500.0,0.00022469,2]
[336896109,1725237044778,-940.68,0.00022469,2]
[336896111,1725237044788,-1078.19,0.00022469,2]
[336896113,1725237044798,-500.0,0.00022469,2]
[336896115,1725237044808,-500.0,0.00022469,2]
[336896117,1725237044819,-500.0,0.00022469,2]
[336896119,1725237044828,-500.0,0.00022469,2]
[336896121,1725237044837,-500.0,0.00022469,2]
[336896123,1725237044847,-539.30675352,0.00022469,2]
[336896125,1725237044856,-663.01,0.00022469,2]
[336896127,1725237044865,-500.0,0.00022469,2]
[336896129,1725237044874,-792.02,0.00022469,2]
[336896131,1725237044883,-500.0,0.00022469,2]
[336896133,1725237044893,-500.0,0.00022469,2]
[336896135,1725237044904,-668.23,0.00022469,2]
[336896137,1725237044915,-500.0,0.00022469,2]
[336896139,1725237044927,-500.0,0.00022469,2]
[336896141,1725237044936,-1253.92,0.00022469,2]
[336896143,1725237044948,-500.0,0.00022469,2]
[336896145,1725237044959,-500.0,0.00022469,2]
[336896148,1725237044970,-500.0,0.00022469,2]
[336896150,1725237044980,-500.0,0.00022469,2]
[336896152,1725237044991,-500.0,0.00022469,2]
[336896154,1725237045000,-500.0,0.00022469,2]
[336896156,1725237045009,-503.83830104,0.00022469,2]
[336896158,1725237045018,-1517.1,0.00022469,2]
[336896160,1725237045029,-500.0,0.00022469,2]
[336896162,1725237045039,-500.0,0.00022469,2]
[336896164,1725237045048,-277.16237862,0.00022469,2]
[336896166,1725237045058,-500.0,0.00022469,2]
[336896168,1725237045068,-500.0,0.00022469,2]
[336896170,1725237045077,-510.56721195,0.00022469,2]
[336896172,1725237045087,-1002.01,0.00022469,2]
[336896174,1725237045097,-1798.17,0.00022469,2]
[336896176,1725237045106,-500.0,0.00022469,2]
[336896178,1725237045116,-917.78,0.00022469,2]
[336896180,1725237045125,-500.0,0.00022469,2]
[336896182,1725237045134,-500.0,0.00022469,2]
[336896183,1725237045143,-505.44,0.00022469,2]
[336896185,1725237045153,-500.0,0.00022469,2]
[336896187,1725237045164,-500.0,0.00022469,2]
[336896189,1725237045175,-500.0,0.00022469,2]
[336896191,1725237045184,-500.0,0.00022469,2]
[336896193,1725237045194,-365.58572285,0.00022469,2]
[336896195,1725237045203,-1187.16,0.00022469,2]
[336896197,1725237045213,-500.0,0.00022469,2]
[336896199,1725237045223,-2120.73,0.00022469,2]
[336896201,1725237045232,-1061.53,0.00022469,2]
[336896203,1725237045242,-500.0,0.00022469,2]
[336896205,1725237045252,-500.0,0.00022469,2]
[336896207,1725237045262,-500.0,0.00022469,2]
[336896209,1725237045271,-513.61144347,0.00022469,2]
[336896211,1725237045281,-500.0,0.00022469,2]
[336896213,1725237045291,-1422.34,0.00022469,2]
[336896215,1725237045300,-500.0,0.00022469,2]
[336896217,1725237045309,-500.0,0.00022469,2]
[336896219,1725237045319,-500.0,0.00022469,2]
[336896229,1725237045405,-383.77402307,0.00022469,2]
[336896231,1725237045414,-500.0,0.00022469,2]
[336896233,1725237045423,-601.9,0.00022469,2]
[336896235,1725237045432,-661.18,0.00022469,2]
[336896237,1725237045442,-500.0,0.00022469,2]
[336896239,1725237045453,-500.0,0.00022469,2]
[336896241,1725237045463,-500.0,0.00022469,2]
[336896243,1725237045473,-500.0,0.00022469,2]
[336896245,1725237045483,-600.0,0.00022469,2]
[336896247,1725237045492,-687.69,0.00022469,2]
[336896249,1725237045502,-500.0,0.00022469,2]
[336896251,1725237045511,-500.0,0.00022469,2]
[336896253,1725237045520,-835.81,0.00022469,2]
[336896255,1725237045529,-1360.75,0.00022469,2]
[336896257,1725237045539,-500.0,0.00022469,2]
[336896259,1725237045548,-500.0,0.00022469,2]
[336896261,1725237045558,-500.0,0.00022469,2]
[336896263,1725237045567,-206.75659426,0.00022469,2]
[336896265,1725237045576,-500.0,0.00022469,2]
[336896267,1725237045586,-2435.12,0.00022469,2]
[336896269,1725237045595,-500.0,0.00022469,2]
[336896271,1725237045605,-500.0,0.00022469,2]
[336896273,1725237045614,-500.0,0.00022469,2]
[336896275,1725237045623,-500.0,0.00022469,2]
[336896277,1725237045633,-500.0,0.00022469,2]
[336896279,1725237045642,-500.0,0.00022469,2]
[336896281,1725237045651,-542.17,0.00022469,2]
[336896283,1725237045661,-500.0,0.00022469,2]
[336896285,1725237045669,-500.0,0.00022469,2]
[336896287,1725237045678,-1021.24,0.00022469,2]
[336896289,1725237045688,-500.0,0.00022469,2]
[336896291,1725237045697,-500.0,0.00022469,2]
[336896293,1725237045707,-500.0,0.00022469,2]
[336896295,1725237045716,-500.0,0.00022469,2]
[336896297,1725237045727,-1465.63,0.00022469,2]
[336896299,1725237045736,-1299.93,0.00022469,2]
[336896301,1725237045746,-566.76,0.00022469,2]
[336896303,1725237045755,-630.24,0.00022469,2]
[336896305,1725237045763,-247.81419154,0.00022469,2]
[336896306,1725237045773,-513.23046213,0.00022469,2]
[336896308,1725237045782,-500.0,0.00022469,2]
[336896311,1725237045792,-500.0,0.00022469,2]
[336896312,1725237045802,-500.0,0.00022469,2]
[336896315,1725237045812,-637.45,0.00022469,2]
[336896318,1725237045823,-500.0,0.00022469,2]
[336896320,1725237045832,-500.0,0.00022469,2]
[336896322,1725237045842,-500.0,0.00022469,2]
[336896324,1725237045854,-500.0,0.00022469,2]
[336896326,1725237045863,-500.0,0.00022469,2]
[336896328,1725237045872,-1359.75,0.00022469,2]
[336896330,1725237045882,-500.0,0.00022469,2]
[336896332,1725237045892,-657.25,0.00022469,2]
[336896334,1725237045902,-500.0,0.00022469,2]
[336896336,1725237045912,-500.0,0.00022469,2]
[336896338,1725237045921,-546.15559992,0.00022469,2]
[336896340,1725237045931,-500.0,0.00022469,2]
[336896342,1725237045939,-501.38801482,0.00022469,2]
[336896344,1725237045948,-500.0,0.00022469,2]
[336896345,1725237045957,-500.0,0.00022469,2]
[336896347,1725237045967,-500.0,0.00022469,2]
[336896349,1725237045976,-500.0,0.00022469,2]
[336896351,1725237045986,-500.0,0.00022469,2]
[336896353,1725237045995,-909.22,0.00022469,2]
[336896355,1725237046005,-523.13,0.00022469,2]
[336896357,1725237046014,-1024.46,0.00022469,2]
[336896358,1725237046023,-500.0,0.00022469,2]
[336896360,1725237046033,-500.0,0.00022469,2]
[336896362,1725237046042,-500.0,0.00022469,2]
[336896364,1725237046051,-1208.11,0.00022469,2]
[336896365,1725237046060,-500.0,0.00022469,2]
[336896367,1725237046069,-500.0,0.00022469,2]
[336896369,1725237046078,-1305.74,0.00022469,2]
[336896371,1725237046088,-500.0,0.00022469,2]
[336896373,1725237046097,-500.0,0.00022469,2]
[336896375,1725237046107,-500.0,0.00022469,2]
[336896377,1725237046116,-500.0,0.00022469,2]
[336896379,1725237046125,-1194.86,0.00022469,2]
[336896381,1725237046134,-151.0,0.00022469,2]
[336896383,1725237046143,-500.0,0.00022469,2]
[336896385,1725237046154,-500.0,0.00022469,2]
[336896387,1725237046165,-500.0,0.00022469,2]
[336896389,1725237046174,-500.0,0.00022469,2]
[336896390,1725237046183,-500.0,0.00022469,2]
[336896392,1725237046192,-500.0,0.00022469,2]
[336896394,1725237046202,-500.0,0.00022469,2]
[336896396,1725237046211,-500.0,0.00022469,2]
[336896398,1725237046221,-500.0,0.00022469,2]
[336896400,1725237046230,-500.0,0.00022469,2]
[336896402,1725237046239,-500.0,0.00022469,2]
[336896404,1725237046248,-500.0,0.00022469,2]
[336896406,1725237046257,-500.0,0.00022469,2]
[336896408,1725237046266,-507.90775191,0.00022469,2]
[336896410,1725237046275,-500.0,0.00022469,2]
[336896412,1725237046284,-877.46,0.00022469,2]
[336896414,1725237046293,-500.0,0.00022469,2]
[336896416,1725237046302,-500.0,0.00022469,2]
[336896417,1725237046311,-500.0,0.00022469,2]
[336896420,1725237046322,-500.0,0.00022469,2]
[336896422,1725237046331,-500.0,0.00022469,2]
[336896424,1725237046342,-500.0,0.00022469,2]
[336896425,1725237046351,-500.0,0.00022469,2]
[336896427,1725237046359,-500.0,0.00022469,2]
[336896429,1725237046368,-1830.73,0.00022469,2]
[336896431,1725237046377,-1400.31,0.00022469,2]
[336896433,1725237046386,-777.41,0.00022469,2]
[336896435,1725237046395,-548.89,0.00022469,2]
[336896437,1725237046404,-500.0,0.00022469,2]
[336896439,1725237046414,-500.0,0.00022469,2]
[336896441,1725237046424,-1336.61,0.00022469,2]
[336896443,1725237046432,-500.0,0.00022469,2]
[336896445,1725237046441,-2216.75,0.00022469,2]
[336896447,1725237046450,-2170.83,0.00022469,2]
[336896449,1725237046459,-2945.37,0.00022469,2]
[336896451,1725237046469,-500.0,0.00022469,2]
[336896453,1725237046478,-500.0,0.00022469,2]
[336896455,1725237046487,-500.0,0.00022469,2]
[336896457,1725237046496,-500.0,0.00022469,2]
[336896459,1725237046505,-377.39000061,0.00022469,2]
[336896461,1725237046514,-500.0,0.00022469,2]
[336896463,1725237046523,-1593.68,0.00022469,2]
[336896465,1725237046532,-500.0,0.00022469,2]
[336896466,1725237046541,-500.0,0.00022469,2]
[336896468,1725237046550,-500.0,0.00022469,2]
[336896470,1725237046559,-500.0,0.00022469,2]
[336896472,1725237046568,-500.0,0.00022469,2]
[336896474,1725237046577,-1077.61,0.00022469,2]
[336896476,1725237046587,-500.0,0.00022469,2]
[336896478,1725237046596,-1040.13,0.00022469,2]
[336896480,1725237046605,-500.0,0.00022469,2]
[336896482,1725237046614,-1083.84,0.00022469,2]
[336896484,1725237046624,-645.86,0.00022469,2]
[336896486,1725237046633,-1968.08,0.00022469,2]
[336896488,1725237046643,-500.0,0.00022469,2]
[336896490,1725237046652,-500.0,0.00022469,2]
[336896492,1725237046661,-500.0,0.00022469,2]
[336896494,1725237046670,-1416.38,0.00022469,2]
[336896496,1725237046679,-500.0,0.00022469,2]
[336896498,1725237046689,-500.0,0.00022469,2]
[336896500,1725237046698,-1257.92,0.00022469,2]
[336896502,1725237046707,-500.0,0.00022469,2]
[336896504,1725237046717,-802.97,0.00022469,2]
[336896506,1725237046730,-1170.05,0.00022469,2]
[336896508,1725237046740,-500.0,0.00022469,2]
[336896510,1725237046749,-500.0,0.00022469,2]
[336896512,1725237046759,-500.0,0.00022469,2]
[336896514,1725237046768,-500.0,0.00022469,2]
[336896516,1725237046777,-500.0,0.00022469,2]
[336896518,1725237046786,-500.0,0.00022469,2]
[336896519,1725237046795,-1120.74,0.00022469,2]
[336896521,1725237046804,-500.0,0.00022469,2]
[336896523,1725237046814,-500.0,0.00022469,2]
[336896525,1725237046823,-1342.61,0.00022469,2]
[336896527,1725237046832,-500.0,0.00022469,2]
[336896530,1725237046844,-500.0,0.00022469,2]
[336896532,1725237046855,-986.49,0.00022469,2]
[336896534,1725237046866,-2440.52,0.00022469,2]
[336896536,1725237046877,-500.0,0.00022469,2]
[336896538,1725237046886,-1019.54,0.00022469,2]
[336896540,1725237046896,-583.32,0.00022469,2]
[336896542,1725237046905,-644.02,0.00022469,2]
[336896544,1725237046914,-500.0,0.00022469,2]
[336896546,1725237046923,-500.0,0.00022469,2]
[336896548,1725237046932,-500.0,0.00022469,2]
[336896550,1725237046941,-1107.2,0.00022469,2]
[336896552,1725237046951,-500.0,0.00022469,2]
[336896554,1725237046960,-1789.88,0.00022469,2]
[336896556,1725237046970,-500.0,0.00022469,2]
[336896558,1725237046979,-500.0,0.00022469,2]
[336896560,1725237046989,-500.0,0.00022469,2]
[336896562,1725237046999,-500.0,0.00022469,2]
[336896564,1725237047009,-568.53,0.00022469,2]
[336896566,1725237047018,-624.29,0.00022469,2]
[336896568,1725237047028,-500.0,0.00022469,2]
[336896569,1725237047038,-500.0,0.00022469,2]
[336896570,1725237047047,-500.0,0.00022469,2]
[336896571,1725237047057,-843.43,0.00022469,2]
[336896572,1725237047066,-500.0,0.00022469,2]
[336896573,1725237047076,-500.0,0.00022469,2]
[336896574,1725237047085,-2536.28,0.00022469,2]
[336896575,1725237047094,-500.0,0.00022469,2]
[336896576,1725237047104,-614.06,0.00022469,2]
[336896577,1725237047114,-1097.29,0.00022469,2]
[336896578,1725237047124,-500.0,0.00022469,2]
[336896579,1725237047134,-859.61,0.00022469,2]
[336896580,1725237047146,-500.0,0.00022469,2]
[336896581,1725237047156,-1199.28,0.00022469,2]
[336896582,1725237047168,-500.0,0.00022469,2]
[336896583,1725237047178,-577.97,0.00022469,2]
[336896584,1725237047187,-730.24,0.00022469,2]
[336896585,1725237047198,-1233.68,0.00022469,2]
[336896586,1725237047209,-502.90642918,0.00022469,2]
[336896588,1725237047218,-500.0,0.00022469,2]
[336896590,1725237047229,-1105.373469,0.00022469,7]
[336896592,1725237047238,-577.02564059,0.00022469,2]
[336896594,1725237047250,-151.0,0.00022469,7]
[336896597,1725237047260,-500.0,0.00022469,2]
[336896599,1725237047271,-637.35,0.00022469,2]
[336896601,1725237047281,-1105.373469,0.00022469,7]
[336896603,1725237047291,-500.0,0.00022469,2]
[336896605,1725237047301,-500.0,0.00022469,2]
[336896607,1725237047310,-151.0,0.00022469,7]
[336896609,1725237047321,-500.0,0.00022469,2]
[336896611,1725237047331,-500.0,0.00022469,2]
[336896613,1725237047341,-500.0,0.00022469,2]
[336896615,1725237047351,-566.36,0.00022469,2]
[336896617,1725237047361,-763.53,0.00022469,2]
[336896619,1725237047372,-546.59593052,0.00022469,2]
[336896621,1725237047382,-500.0,0.00022469,2]
[336896623,1725237047392,-750.8,0.00022469,2]
[336896625,1725237047401,-500.0,0.00022469,2]
[336896627,1725237047412,-615.43,0.00022469,2]
[336896630,1725237047423,-927.91,0.00022469,2]
[336896632,1725237047435,-629.48,0.00022469,2]
[336896634,1725237047446,-1408.28,0.00022469,2]
[336896636,1725237047457,-698.12,0.00022469,2]
[336896638,1725237047467,-500.0,0.00022469,2]
[336896640,1725237047478,-533.39,0.00022469,2]
[336896642,1725237047488,-1143.32,0.00022469,2]
[336896644,1725237047497,-2650.82,0.00022469,2]
[336896646,1725237047507,-605.85,0.00022469,2]
[336896648,1725237047516,-500.0,0.00022469,2]
[336896651,1725237047526,-500.0,0.00022469,2]
[336896653,1725237047536,-500.0,0.00022469,2]
[336896655,1725237047546,-906.1,0.00022469,2]
[336896657,1725237047556,-500.0,0.00022469,2]
[336896659,1725237047565,-500.0,0.00022469,2]
[336896661,1725237047577,-500.0,0.00022469,2]
[336896663,1725237047591,-674.07,0.00022469,2]
[336896665,1725237047601,-603.95,0.00022469,2]
[336896667,1725237047611,-500.0,0.00022469,2]
[336896669,1725237047620,-500.0,0.00022469,2]
[336896671,1725237047633,-500.0,0.00022469,2]
[336896673,1725237047642,-500.0,0.00022469,2]
[336896675,1725237047651,-500.0,0.00022469,2]
[336896676,1725237047661,-212.140768,0.00022469,7]
[336896679,1725237047671,-500.0,0.00022469,2]
[336896681,1725237047681,-500.0,0.00022469,2]
[336896683,1725237047691,-212.140768,0.00022469,7]
[336896685,1725237047700,-500.0,0.00022469,2]
[336896687,1725237047709,-500.0,0.00022469,2]
[336896689,1725237047718,-308.21900273,0.00022469,2]
[336896691,1725237047728,-266.12462895,0.00022469,2]
[336896693,1725237047737,-500.0,0.00022469,2]
[336896695,1725237047746,-500.0,0.00022469,2]
[336896697,1725237047755,-1019.97,0.00022469,2]
[336896699,1725237047765,-1599.3,0.00022469,2]
[336896701,1725237047774,-1263.1,0.00022469,2]
[336896703,1725237047783,-1059.64,0.00022469,2]
[336896705,1725237047792,-500.0,0.00022469,2]
[336896707,1725237047802,-308.1196113,0.00022469,2]
[336896709,1725237047810,-1584.46,0.00022469,2]
[336896710,1725237047819,-500.0,0.00022469,2]
[336896712,1725237047828,-500.0,0.00022469,2]
[336896715,1725237047838,-532.68,0.00022469,2]
[336896717,1725237047848,-308.02487622,0.00022469,2]
[336896719,1725237047859,-500.0,0.00022469,2]
[336896721,1725237047871,-500.0,0.00022469,2]
[336896723,1725237047881,-624.27239316,0.00022469,2]
[336896725,1725237047892,-887.98,0.00022469,2]
[336896727,1725237047903,-844.29,0.00022469,2]
[336896730,1725237047914,-500.0,0.00022469,2]
[336896732,1725237047924,-500.0,0.00022469,2]
[336896734,1725237047934,-500.0,0.00022469,2]
[336896736,1725237047945,-500.0,0.00022469,2]
[336896738,1725237047956,-533.24,0.00022469,2]
[336896741,1725237047967,-1441.16,0.00022469,2]
[336896743,1725237047979,-1324.3,0.00022469,2]
[336896745,1725237047990,-500.0,0.00022469,2]